bitfinex-derivatives/quotes_ETHF0:USTF0_20250918
["timestamp","ask_amount","ask_price","bid_price","bid_amount"]
[1758161284928,4.19127359,4616.1,4616.0,0.8171]
[1758161285127,4.18556923,4616.1,4616.0,0.8171]
[1758161285327,4.41088352,4616.1,4616.0,1.7617]
[1758161287033,0.97776923,4616.1,4616.0,1.7617]
[1758161291634,0.75776923,4616.1,4616.0,1.7617]
[1758161291833,0.97776923,4616.1,4616.0,1.7617]
[1758161294235,1.49236128,4616.1,4616.0,1.7617]
[1758161295045,0.97776923,4616.1,4616.0,1.7617]
[1758161296335,0.22,4616.1,4616.0,1.7617]
[1758161296535,0.97776923,4616.1,4616.0,1.7617]
[1758161299243,1.49236683,4616.1,4616.0,1.7617]
[1758161299741,0.97776923,4616.1,4616.0,1.7617]
[1758161300338,1.4924305,4616.1,4616.0,1.7617]
[1758161300846,1.4924305,4616.1,4616.0,1.5519]
[1758161301040,1.2724305,4616.1,4616.0,1.747]
[1758161301238,1.4924305,4616.1,4616.0,1.747]
[1758161301942,0.97776923,4616.1,4616.0,1.747]
[1758161302243,1.49252705,4616.1,4616.0,1.747]
[1758161302440,2.25029628,4616.1,4616.0,1.3579]
[1758161303142,2.47739775,4616.1,4616.0,1.3579]
[1758161303946,6.47739775,4616.1,4615.5,0.1197]
[1758161304133,4.72333846,4615.6,4615.5,0.41]
[1758161304336,5.68519775,4615.6,4615.5,0.41]
[1758161307239,5.68519775,4615.6,4615.5,0.7994]
[1758161307240,4.70742852,4615.6,4615.5,0.7994]
[1758161307744,1.71962852,4615.6,4615.5,0.7994]
[1758161308042,1.71962852,4615.6,4615.5,1.55716923]
[1758161308043,0.51475782,4615.6,4615.5,1.55716923]
[1758161308342,0.73475782,4615.6,4615.5,0.7994]
[1758161308542,0.97776923,4615.6,4615.5,0.7994]
[1758161308847,1.49329941,4615.6,4615.5,0.7994]
[1758161309944,0.73553018,4615.6,4615.5,0.7994]
[1758161310136,1.49329941,4615.6,4615.5,0.7994]
[1758161311544,1.49345171,4615.6,4615.5,0.7994]
[1758161313148,2.25122094,4615.6,4615.5,0.6043]
[1758161313449,1.49345171,4615.6,4615.5,0.6043]
[1758161313645,1.49345171,4615.6,4615.5,0.7994]
[1758161314443,0.51568248,4615.6,4615.5,0.7994]
[1758161314647,0.73568248,4615.6,4615.5,0.7994]
[1758161314951,1.49345171,4615.6,4615.5,0.7994]
[1758161315953,1.49359336,4615.6,4615.5,0.7994]
[1758161318149,0.22,4615.6,4615.5,0.7994]
[1758161318350,0.97776923,4615.6,4615.5,0.7994]
[1758161318552,0.75776923,4615.6,4615.5,0.7994]
[1758161318754,0.97776923,4615.6,4615.5,0.7994]
[1758161319149,1.49542773,4615.6,4615.5,0.7994]
[1758161319652,0.7376585,4615.6,4615.5,0.7994]
[1758161319955,1.66726864,4615.6,4615.5,0.7994]
[1758161323151,1.66726864,4615.6,4615.5,1.9856]
[1758161323754,1.89482682,4615.6,4615.5,1.9856]
[1758161326750,1.89482682,4615.6,4615.5,0.7994]
[1758161329360,1.89248865,4615.6,4615.5,0.7994]
[1758161331165,1.37483015,4615.6,4615.5,0.7994]
[1758161331353,1.8928641,4615.6,4615.5,0.7994]
[1758161332559,1.66764409,4615.6,4615.5,0.7994]
[1758161337759,1.89318464,4615.6,4615.5,0.7994]
[1758161340863,1.89318593,4615.6,4615.5,0.7994]
[1758161341361,0.74357579,4615.6,4615.5,0.7994]
[1758161341661,1.89218593,4615.6,4615.5,0.7994]
[1758161341858,1.89218593,4615.6,4615.5,0.41]
[1758161342050,3.03845607,4615.6,4615.2,0.2923]
[1758161342255,0.92961014,4615.3,4615.2,0.2923]
[1758161342455,1.67318593,4615.3,4615.2,0.2923]
[1758161343260,1.67318593,4615.3,4615.2,0.5018]
[1758161344163,1.89218593,4615.3,4615.2,0.5018]
[1758161344760,1.67318593,4615.3,4615.2,0.703]
[1758161344957,1.66664409,4615.3,4615.2,0.703]
[1758161346559,0.73703395,4615.3,4615.2,0.703]
[1758161347259,0.51803395,4615.3,4615.2,0.703]
[1758161347465,3.2078,4616.2,4616.1,0.2986]
[1758161347762,5.10021802,4616.2,4616.1,0.2986]
[1758161351862,5.10021802,4616.2,4616.0,0.4153]
[1758161352061,0.74380788,4616.1,4616.0,0.4153]
[1758161352370,0.74380788,4616.1,4615.6,0.2986]
[1758161352563,5.06702028,4615.7,4615.2,0.2986]
[1758161352862,0.92961014,4615.3,4615.2,0.2986]
[1758161353062,1.89241802,4615.3,4615.2,0.2986]
[1758161353461,1.89241802,4615.3,4615.1,1.0634]
[1758161353659,3.95160788,4615.2,4615.1,1.0634]
[1758161354264,3.95160788,4615.2,4615.1,1.362]
[1758161354757,3.95160788,4615.2,4615.1,0.2986]
[1758161356270,3.95160788,4615.2,4614.9,0.3202]
[1758161356567,0.92961014,4615.0,4614.9,0.3202]
[1758161356773,1.67341802,4615.0,4614.9,0.3202]
[1758161356962,1.67341802,4615.0,4614.9,0.2986]
[1758161371478,1.67906351,4615.0,4614.9,0.2986]
[1758161371678,1.67906351,4615.0,4614.9,0.5078]
[1758161373282,1.67906351,4615.0,4614.9,0.2986]
[1758161374774,1.44818103,4615.0,4614.9,0.2986]
[1758161374985,1.67913597,4615.0,4614.9,0.2986]
[1758161375380,1.67913597,4615.0,4614.7,0.1733]
[1758161375578,3.2078,4614.8,4614.7,0.4719]
[1758161375784,4.17632583,4614.8,4614.7,0.4719]
[1758161376683,4.17632583,4614.8,4614.7,0.6811]
[1758161377886,0.2167,4614.7,4613.2,3.52157716]
[1758161378188,0.2167,4614.7,4613.5,0.6113]
[1758161378189,0.92961014,4613.6,4613.5,0.6113]
[1758161378388,1.89813597,4613.6,4613.5,0.8032]
[1758161379380,1.89807093,4613.6,4613.5,0.8032]
[1758161380889,5.10587093,4613.6,4613.5,0.4088]
[1758161381090,0.4112,4613.3,4613.2,0.02167716]
[1758161381289,2.53917093,4613.3,4613.2,0.02167716]
[1758161381889,2.36797958,4613.3,4613.2,0.02167716]
[1758161383793,0.4112,4613.0,4612.9,0.2921]
[1758161383998,2.13708968,4613.0,4612.9,0.2921]
[1758161385893,1.90718968,4613.0,4612.6,0.1891]
[1758161386191,1.39951879,4612.7,4612.6,0.1891]
[1758161386397,2.13708968,4612.7,4612.6,0.1891]
[1758161386689,2.13708968,4612.7,4611.7,3.2078]
[1758161386890,0.6411,4612.2,4612.1,0.4946]
[1758161387092,1.61851879,4612.2,4612.1,0.4946]
[1758161387494,1.38861879,4612.2,4612.1,0.4946]
[1758161388291,1.61851879,4612.2,4612.1,0.4946]
[1758161388492,2.13902846,4612.2,4611.5,0.1183]
[1758161388687,0.96701879,4611.6,4611.5,0.5127]
[1758161388894,1.49351879,4611.6,4611.5,0.5127]
[1758161390488,1.69611879,4611.6,4611.5,0.4946]
[1758161390691,1.69611879,4611.6,4611.5,0.6865]
[1758161391090,1.69611879,4611.6,4611.5,0.8048]
[1758161393297,0.4112,4611.6,4611.5,0.8048]
[1758161393495,0.97741879,4611.6,4611.5,0.8048]
[1758161394698,1.18601879,4611.6,4611.5,0.8048]
[1758161395888,1.69611879,4611.6,4611.5,0.8048]
[1758161396689,1.18601879,4611.6,4611.5,0.8048]
[1758161397695,0.75841879,4612.3,4611.6,0.2921]
[1758161397696,0.3075,4612.3,4611.6,0.2921]
[1758161397997,1.27451879,4612.3,4612.2,0.6865]
[1758161398204,1.49351879,4612.3,4612.2,0.6865]
[1758161398499,1.27451879,4612.3,4612.2,0.6865]
[1758161398699,1.49351879,4612.3,4612.2,0.6865]
[1758161398998,2.45453758,4612.3,4611.6,0.2921]
[1758161399297,1.27451879,4611.7,4611.6,0.6865]
[1758161399498,1.49351879,4611.7,4611.6,0.6865]
[1758161400295,1.69611879,4611.7,4611.6,0.6865]
[1758161401801,1.18601879,4611.7,4611.6,0.6865]
[1758161401992,0.75841879,4611.7,4611.6,0.6865]
[1758161402197,0.97741879,4611.7,4611.6,0.6865]
[1758161402694,1.18341879,4611.7,4611.6,0.6865]
[1758161402898,1.26651879,4611.7,4611.6,0.6865]
[1758161403201,1.48551879,4611.7,4611.6,0.6865]
[1758161403501,1.18341879,4611.7,4611.6,0.6865]
[1758161404197,1.26651879,4611.7,4611.6,0.6865]
[1758161404396,1.48551879,4611.7,4611.6,0.6865]
[1758161404802,1.68951879,4611.7,4611.6,0.6865]
[1758161408791,2.21454305,4611.7,4611.6,0.6865]
[1758161414610,2.21454305,4611.7,4611.6,0.4946]
[1758161418112,2.21454305,4611.7,4611.6,0.685]
[1758161422113,0.52502426,4611.7,4611.6,1.44341879]
[1758161422412,0.5002,4612.6,4612.5,0.1243]
[1758161422613,0.219,4612.6,4612.5,0.8021]
[1758161422816,0.4139,4612.6,4612.5,0.8021]
[1758161423013,0.7192,4612.6,4612.5,0.8021]
[1758161423813,0.1949,4612.6,4612.5,0.8021]
[1758161424014,0.219,4612.6,4612.5,0.8021]
[1758161424219,0.219,4612.6,4612.5,0.5123]
[1758161424618,0.75841879,4612.7,4612.5,0.5123]
[1758161424922,0.1949,4613.0,4612.9,0.6778]
[1758161425220,0.7192,4613.0,4612.9,0.6778]
[1758161425518,0.9238,4613.0,4612.9,0.6778]
[1758161426114,1.68221879,4613.0,4612.9,0.6778]
[1758161426518,1.46321879,4613.0,4612.9,0.6778]
[1758161426718,1.68221879,4613.0,4612.9,0.6778]
[1758161434421,2.20756147,4613.0,4612.9,0.6778]
[1758161437726,1.98856147,4613.0,4612.9,0.6778]
[1758161437924,2.20756147,4613.0,4612.9,0.6778]
[1758161439422,1.68221879,4613.0,4612.9,0.6778]
[1758161440720,1.46321879,4613.0,4612.9,0.6778]
[1758161440924,1.68221879,4613.0,4612.9,0.6778]
[1758161441131,1.46321879,4613.0,4612.9,0.6778]
[1758161441426,1.17231879,4613.0,4612.9,0.6778]
[1758161441829,0.4139,4613.0,4612.9,0.6778]
[1758161442426,0.7112,4613.0,4612.9,0.6778]
[1758161443430,0.4139,4613.0,4612.9,0.6778]
[1758161443927,0.7112,4613.0,4612.9,0.6778]
[1758161444227,0.9129,4613.0,4612.9,0.6778]
[1758161444531,0.6939,4613.0,4612.9,0.6778]
[1758161444721,0.9129,4613.0,4612.9,0.6778]
[1758161453033,1.0389,4613.0,4612.7,3.2078]
[1758161453233,0.6901,4612.9,4612.8,0.4993]
[1758161454430,1.62063473,4612.9,4612.8,0.4993]
[1758161454738,3.2078,4613.4,4612.8,0.6889]
[1758161454929,3.2078,4613.4,4612.5,3.93213473]
[1758161454930,0.7074,4613.3,4613.2,0.6889]
[1758161455125,1.13645388,4613.3,4613.2,0.6889]
[1758161455330,1.66187407,4613.3,4613.2,0.6889]
[1758161456027,0.93552019,4613.3,4613.2,0.6889]
[1758161456334,0.52542019,4613.3,4613.2,0.6889]
[1758161456735,0.2973,4613.7,4613.6,0.6889]
[1758161456736,0.4884,4613.7,4613.6,0.6889]
[1758161457038,0.2973,4614.1,4613.6,0.6889]
[1758161457238,0.52606361,4614.0,4613.7,0.3057]
[1758161457534,0.6901,4614.0,4613.9,0.6889]
[1758161457738,1.21659884,4614.0,4613.9,0.6889]
[1758161457934,2.14713357,4614.0,4613.9,0.6889]
[1758161462960,2.14713357,4614.0,4613.6,0.1734]
[1758161462961,2.27223357,4614.0,4613.6,0.1734]
[1758161463151,1.65003473,4613.7,4613.6,0.4671]
[1758161463450,1.86903473,4613.7,4613.6,0.672]
[1758161464456,2.62184011,4613.7,4613.6,0.1734]
[1758161472261,6.62184011,4613.7,4613.6,0.1734]
[1758161472958,6.79513858,4613.7,4613.6,0.1734]
[1758161473365,6.79526318,4613.7,4613.6,0.1734]
[1758161480462,0.8256,4613.5,4613.4,2.4415]
[1758161480661,1.79752998,4613.5,4613.4,2.4415]
[1758161480865,1.79752998,4613.5,4613.4,2.4199]
[1758161484063,1.57852998,4613.5,4613.4,2.4199]
[1758161484269,1.79752998,4613.5,4613.4,2.4199]
[1758161487371,1.97048052,4613.5,4613.4,2.4199]
[1758161489171,1.96966831,4613.5,4613.4,2.4199]
[1758161495570,1.96966831,4613.5,4613.4,2.9201]
[1758161496474,1.79671777,4613.5,4613.4,2.9201]
[1758161497676,1.97235735,4613.5,4613.4,2.9201]
[1758161499376,1.75335735,4613.5,4613.4,2.9201]
[1758161499577,1.84945735,4613.5,4613.4,3.1161]
[1758161500976,1.63045735,4613.5,4613.4,3.1161]
[1758161501277,1.84979761,4613.5,4613.4,3.1161]
[1758161503777,3.36665423,4613.5,4613.4,3.1161]
[1758161506081,3.19101465,4613.5,4613.4,3.1161]
[1758161506382,3.31031465,4613.5,4613.4,2.9201]
[1758161507380,3.48211043,4613.5,4613.4,2.9201]
[1758161508381,3.48211043,4613.5,4613.4,2.4199]
[1758161508780,3.48211043,4613.5,4613.4,2.7154]
[1758161510081,3.48211043,4613.5,4613.4,2.9124]
[1758161510885,3.48211043,4613.5,4613.4,2.2687]
[1758161511083,3.48211043,4613.5,4613.4,1.7332]
[1758161516189,4.9227479,4613.5,4613.4,1.7332]
[1758161517487,5.0420479,4613.5,4613.4,1.7332]
[1758161520389,5.0420479,4613.5,4612.7,0.1734]
[1758161520688,4.47752831,4612.8,4612.7,0.561]
[1758161520986,5.44898634,4612.8,4612.7,0.3876]
[1758161521788,5.44898634,4612.8,4612.7,1.3537]
[1758161524391,5.44898634,4612.8,4612.7,1.485]
[1758161526494,5.45313049,4612.8,4612.7,1.3537]
[1758161528593,5.64463049,4612.8,4612.7,1.3537]
[1758161532195,5.64463049,4612.8,4612.7,1.1607]
[1758161532803,5.64463049,4612.8,4612.7,1.3514]
[1758161534999,4.88620218,4612.8,4612.7,0.9661]
[1758161535198,5.64463049,4612.8,4612.7,0.9661]
[1758161535503,5.64463049,4612.8,4612.7,1.163]
[1758161535897,5.64463049,4612.8,4612.7,0.9661]
[1758161538805,5.42563049,4612.8,4612.7,1.163]
[1758161539010,4.48860218,4612.8,4612.7,1.3537]
[1758161539215,5.24703049,4612.8,4612.7,1.4845]
[1758161539609,5.44123049,4612.8,4612.7,1.4845]
[1758161540501,5.63273049,4612.8,4612.7,1.3537]
[1758161541410,5.63273049,4612.8,4612.7,1.163]
[1758161541609,5.63273049,4612.8,4612.7,0.9661]
[1758161543106,5.63273049,4612.8,4612.7,1.163]
[1758161546505,5.41373049,4612.8,4612.7,1.163]
[1758161546706,5.63273049,4612.8,4612.7,1.163]
[1758161547912,5.63273049,4612.8,4612.7,0.9661]
[1758161550118,5.41373049,4612.8,4612.7,0.9661]
[1758161550319,5.63273049,4612.8,4612.7,0.9661]
[1758161551419,5.63299268,4612.8,4612.7,0.9661]
[1758161552019,5.40207851,4612.8,4612.7,0.9661]
[1758161554710,4.0389502,4612.8,4612.7,1.70128999]
[1758161555014,0.5259502,4612.8,4612.7,5.70128999]
[1758161555221,0.9758547,4612.8,4612.7,5.70128999]
[1758161555418,0.7449502,4612.8,4612.7,5.70128999]
[1758161555924,1.29025373,4612.8,4612.7,5.4845]
[1758161556524,0.75685373,4612.8,4612.7,5.4845]
[1758161556726,0.97585373,4612.8,4612.7,5.4845]
[1758161556924,0.7449502,4612.8,4612.7,5.70128999]
[1758161557124,0.219,4612.8,4612.7,5.4845]
[1758161557519,0.219,4612.8,4612.7,5.70128999]
[1758161557727,0.219,4612.9,4612.8,0.3227]
[1758161558027,0.219,4612.9,4612.8,1.27632831]
[1758161558218,0.219,4612.9,4612.8,5.27632831]
[1758161558625,1.07282831,4613.3,4612.8,5.14472831]
[1758161558819,0.74974707,4613.2,4612.9,0.1316]
[1758161559018,0.53074707,4613.1,4613.0,0.3863]
[1758161559218,0.53074707,4613.1,4613.0,0.5179]
[1758161559625,0.3144,4613.5,4613.4,0.3863]
[1758161559826,1.06404419,4613.5,4613.4,0.5179]
[1758161560127,1.8224725,4613.5,4613.4,0.5179]
[1758161560621,0.3144,4613.8,4613.4,4.3863]
[1758161560822,0.43,4614.5,4613.8,0.1316]
[1758161561021,0.43,4614.5,4614.4,0.5179]
[1758161561221,1.17955082,4614.5,4614.4,0.5179]
[1758161562125,1.38555082,4614.5,4614.4,0.5179]
[1758161562323,0.855,4614.5,4614.4,0.5179]
[1758161566228,0.855,4614.5,4614.4,0.3863]
[1758161568230,0.636,4614.5,4614.4,0.3863]
[1758161568427,0.855,4614.5,4614.4,0.3863]
[1758161568827,0.636,4614.5,4614.4,0.3863]
[1758161569129,0.649,4614.5,4614.4,0.5179]
[1758161569428,0.43,4614.5,4614.4,0.5179]
[1758161569933,0.5334,4614.5,4614.4,0.5179]
[1758161570535,0.6597,4614.5,4614.4,0.5179]
[1758161570836,0.6467,4614.5,4614.4,0.5179]
[1758161572131,0.3144,4615.0,4614.9,0.5179]
[1758161572336,0.3144,4615.4,4615.3,0.5179]
[1758161574725,3.2078,4615.8,4615.7,0.3863]
[1758161575025,3.6328,4615.8,4615.7,0.3863]
[1758161575226,4.1426,4615.8,4615.7,0.3863]
[1758161575426,3.9236,4615.8,4615.7,0.3863]
[1758161575835,3.9236,4615.8,4615.7,1.347]
[1758161576324,0.7158,4615.8,4615.7,1.347]
[1758161577137,0.3144,4615.8,4615.7,1.4786]
[1758161577330,0.5204,4615.8,4615.7,1.347]
[1758161577527,0.7158,4615.8,4615.7,1.347]
[1758161579227,0.5204,4615.8,4615.7,1.347]
[1758161579427,0.5204,4615.8,4615.7,1.4783]
[1758161579837,0.713,4615.8,4615.7,1.347]
[1758161585231,0.713,4615.8,4615.7,1.1518]
[1758161587738,0.713,4615.8,4615.7,1.3613]
[1758161590234,0.5204,4615.8,4615.7,1.4927]
[1758161590535,0.5204,4615.8,4615.7,1.3613]
[1758161592341,0.5204,4615.8,4615.7,1.4927]
[1758161592541,0.5204,4615.8,4615.7,1.3613]
[1758161593637,0.5204,4615.8,4615.7,1.4927]
[1758161594144,1.04971475,4615.8,4615.7,1.4927]
[1758161594645,0.84371475,4615.8,4615.7,1.4927]
[1758161594845,1.04941475,4615.8,4615.7,1.4927]
[1758161595439,1.04941475,4615.8,4615.7,1.3613]
[1758161595938,0.84371475,4615.8,4615.7,1.3613]
[1758161596142,0.84371475,4615.8,4615.7,1.4927]
[1758161598038,3.3341,4616.5,4616.4,0.2107]
[1758161598039,4.2556,4616.5,4616.4,0.2107]
[1758161598348,4.48314576,4616.5,4616.4,0.4168]
[1758161598540,4.26414576,4616.5,4616.4,0.4168]
[1758161599546,0.2903,4616.5,4616.4,0.6745]
[1758161600244,0.1263,4617.0,4616.4,0.6745]
[1758161600444,0.2903,4616.9,4616.8,0.4168]
[1758161600644,0.2903,4616.9,4616.8,3.8823]
[1758161601037,0.496,4617.4,4617.3,0.4168]
[1758161601243,0.93026936,4617.4,4617.3,0.4168]
[1758161602344,0.7025,4617.4,4617.3,0.6745]
[1758161602645,0.7025,4617.4,4617.3,1.60444339]
[1758161602850,0.496,4617.4,4617.3,1.60444339]
[1758161603149,0.496,4617.4,4617.3,0.6745]
[1758161603354,0.2903,4617.4,4617.3,1.60444339]
[1758161605045,0.3405,4618.0,4617.4,0.2577]
[1758161605251,1.043,4618.0,4617.9,0.2107]
[1758161605641,0.825,4618.0,4617.9,0.4168]
[1758161606058,0.825,4618.0,4617.9,4.81224339]
[1758161607752,0.2903,4618.0,4617.9,4.81224339]
[1758161608056,0.825,4618.0,4617.9,3.6246]
[1758161608249,0.825,4618.0,4617.9,4.1734]
[1758161608858,0.825,4618.0,4617.9,4.3841]
[1758161609557,1.75494339,4618.0,4617.9,4.3841]
[1758161609857,0.825,4618.0,4617.9,4.5902]
[1758161610054,1.34967766,4618.0,4617.9,4.5902]
[1758161610446,1.34967766,4618.0,4617.9,4.1734]
[1758161610952,1.34967766,4618.0,4617.9,4.3841]
[1758161611161,1.34967766,4618.0,4617.9,4.8479]
[1758161611355,0.825,4618.0,4617.9,4.8479]
[1758161612560,0.6185,4618.0,4617.9,4.8479]
[1758161612748,0.496,4618.0,4617.9,4.8479]
[1758161613257,0.825,4618.0,4617.9,4.5902]
[1758161613460,0.825,4618.0,4617.9,4.1734]
[1758161613760,0.825,4618.0,4617.9,4.3841]
[1758161614164,0.825,4618.0,4617.9,4.5902]
[1758161614360,0.825,4618.0,4617.9,4.8479]
[1758161614556,0.825,4618.0,4617.9,4.5902]
[1758161614863,0.825,4618.0,4617.9,4.1734]
[1758161615058,0.825,4618.0,4617.9,4.3841]
[1758161615254,0.825,4618.0,4617.9,4.5902]
[1758161615456,0.825,4618.0,4617.9,4.8479]
[1758161616360,0.2903,4618.0,4617.9,4.8479]
[1758161616560,0.2903,4618.0,4617.9,5.77784339]
[1758161617061,0.2903,4618.0,4617.9,4.8479]
[1758161617262,0.4803,4618.0,4617.9,4.8479]
[1758161618864,0.3116,4618.2,4618.0,0.2577]
[1758161619062,3.2078,4619.2,4618.0,0.2577]
[1758161619063,0.2896,4618.9,4618.2,0.2577]
[1758161619260,0.4796,4618.9,4618.8,0.6756]
[1758161619759,0.6696,4618.9,4618.8,0.4179]
[1758161619961,0.218,4619.3,4618.5,3.2078]
[1758161619962,0.19,4618.8,4618.5,3.4655]
[1758161620160,0.38,4618.8,4618.7,0.4179]
[1758161620757,0.6696,4618.8,4618.7,0.4179]
[1758161620960,0.6696,4618.8,4618.7,0.2077]
[1758161623067,0.38,4618.8,4618.6,1.0499]
[1758161623260,0.6696,4618.7,4618.6,1.2576]
[1758161625869,1.42604698,4618.7,4618.6,1.2576]
[1758161626173,1.42604698,4618.7,4618.6,1.0499]
[1758161626374,1.64255698,4618.7,4618.6,1.0499]
[1758161626671,2.38726313,4618.7,4618.6,1.0499]
[1758161626968,2.17075313,4618.7,4618.6,1.0499]
[1758161629164,1.41430615,4618.7,4618.6,1.0499]
[1758161631471,1.41563597,4618.7,4618.6,1.0499]
[1758161631772,1.64329488,4618.7,4618.6,1.0499]
[1758161632169,1.41563597,4618.7,4618.6,1.0499]
[1758161632371,1.64337784,4618.7,4618.6,1.0499]
[1758161633766,1.23537784,4618.7,4618.6,1.7255]
[1758161633968,1.42537784,4618.7,4618.6,1.4678]
[1758161634271,2.18182482,4618.7,4618.6,1.4678]
[1758161634472,1.23537784,4618.7,4618.6,1.7255]
[1758161634864,1.99182482,4618.7,4618.6,1.7255]
[1758161635368,2.18182482,4618.7,4618.6,1.7255]
[1758161635568,2.18182482,4618.7,4618.6,1.4678]
[1758161636169,1.64337784,4618.7,4618.6,1.4678]
[1758161636372,2.39982482,4618.7,4618.6,1.4678]
[1758161637574,1.64337784,4618.7,4618.6,1.4678]
[1758161637774,2.39982482,4618.7,4618.6,1.4678]
[1758161638676,2.39982482,4618.7,4618.6,1.0499]
[1758161641371,1.64337784,4618.7,4618.6,1.0499]
[1758161641573,2.39982482,4618.7,4618.6,1.0499]
[1758161641977,2.39982482,4618.7,4618.6,0.2105]
[1758161644373,2.39982482,4618.7,4618.6,0.421]
[1758161644571,1.23537784,4618.7,4618.6,1.43534698]
[1758161644872,0.2937,4619.0,4618.6,1.43534698]
[1758161645065,0.82286378,4618.9,4618.8,0.421]
[1758161645270,0.82286378,4618.9,4618.8,0.6789]
[1758161646173,0.82286378,4618.9,4618.8,1.43534698]
[1758161646670,0.52916378,4618.9,4618.8,1.43534698]
[1758161647163,0.52916378,4618.9,4618.8,5.43534698]
[1758161648874,0.82076378,4618.9,4618.8,5.43534698]
[1758161650374,0.52916378,4618.9,4618.8,5.43534698]
[1758161650677,0.52916378,4618.9,4618.8,5.65334698]
[1758161651580,0.82076378,4618.9,4618.8,5.65334698]
[1758161651976,0.52916378,4618.9,4618.8,5.65334698]
[1758161653672,0.45,4619.4,4619.3,0.6506]
[1758161653879,0.4119,4620.0,4619.9,0.3932]
[1758161654180,0.6177,4620.0,4619.9,1.40704698]
[1758161656679,0.8169,4620.0,4619.8,3.2078]
[1758161656873,0.817,4619.5,4619.4,0.3932]
[1758161657080,1.57344698,4619.5,4619.4,0.1971]
[1758161657472,0.817,4619.5,4619.4,0.1971]
[1758161657883,0.817,4619.5,4619.4,0.3932]
[1758161659178,1.57344698,4619.5,4619.3,3.2078]
[1758161659377,0.6966,4619.4,4619.3,3.2078]
[1758161659588,0.6966,4619.4,4619.3,3.4049]
[1758161660385,0.6966,4619.4,4619.3,3.601]
[1758161662082,0.6966,4619.4,4619.3,4.61484698]
[1758161662582,0.4974,4619.4,4619.3,4.61484698]
[1758161664687,0.6966,4619.4,4619.3,3.601]
[1758161666085,0.6966,4619.4,4619.3,3.8584]
[1758161667485,0.6966,4619.4,4619.3,3.601]
[1758161668790,0.6966,4619.4,4619.3,3.4049]
[1758161671589,0.6966,4619.4,4619.3,3.2078]
[1758161671794,0.6966,4619.3,4619.2,1.3862]
[1758161671997,1.22280944,4619.3,4619.2,1.3862]
[1758161672300,5.22280944,4619.3,4619.2,1.3862]
[1758161672492,5.45143717,4619.3,4619.2,1.3862]
[1758161677701,5.45139884,4619.3,4619.2,1.3862]
[1758161677896,6.20784582,4619.3,4619.2,1.3862]
[1758161678095,6.20784582,4619.3,4619.2,0.7543]
[1758161678601,0.6928,4618.6,4618.5,2.0799]
[1758161678810,2.19345642,4618.6,4618.5,2.0799]
[1758161679012,1.38074698,4618.6,4618.5,2.0799]
[1758161683116,0.6243,4618.6,4618.5,2.0799]
[1758161683309,1.38074698,4618.6,4618.5,2.0799]
[1758161684616,1.66724698,4618.6,4618.5,2.0799]
[1758161685717,0.6243,4618.6,4618.5,2.0799]
[1758161686015,1.55277124,4618.6,4618.5,2.0799]
[1758161688819,1.83927124,4618.6,4618.5,2.0799]
[1758161689018,2.36519585,4618.6,4618.5,0.8228]
[1758161689919,2.36519585,4618.6,4618.5,0.7088]
[1758161690618,2.36519585,4618.6,4618.5,0.8228]
[1758161693116,2.36519585,4618.6,4618.5,0.7088]
[1758161693320,2.36519585,4618.6,4618.5,0.5148]
[1758161694616,2.36519585,4618.6,4618.5,0.6288]
[1758161694816,2.07869585,4618.6,4618.5,0.8228]
[1758161695214,2.36519585,4618.6,4618.5,0.8228]
[1758161696719,2.36519585,4618.6,4618.5,0.5148]
[1758161697121,2.36519585,4618.6,4618.5,0.3109]
[1758161697627,0.7596,4618.5,4618.4,2.5625]
[1758161697924,1.51483769,4618.5,4618.4,2.5625]
[1758161698826,6.44330893,4618.5,4618.4,2.5625]
[1758161701332,5.51483769,4618.5,4618.4,2.5625]
[1758161702323,1.16153769,4618.5,4618.4,3.2692]
[1758161702525,0.75523769,4618.5,4618.4,3.2692]
[1758161702724,0.74392461,4618.5,4618.4,3.2692]
[1758161702926,0.52592461,4618.5,4618.4,3.2692]
[1758161703127,0.52794913,4618.8,4618.7,0.3989]
[1758161703327,0.97539457,4618.8,4618.7,0.7067]
[1758161703727,1.17949457,4618.8,4618.7,0.7067]
[1758161704732,2.10796581,4618.8,4618.7,0.7067]
[1758161705130,2.30016581,4618.8,4618.7,0.7067]
[1758161705331,2.60116581,4618.8,4618.7,0.7067]
[1758161705929,0.75739457,4618.8,4618.7,1.63517124]
[1758161706123,0.52794913,4618.8,4618.7,5.63517124]
[1758161706437,35.085,4619.3,4619.2,0.3845]
[1758161706735,35.61294639,4619.3,4619.2,0.6728]
[1758161706934,35.83094639,4619.3,4619.2,0.6728]
[1758161707336,35.303,4619.3,4619.2,0.6728]
[1758161707730,35.83070515,4619.3,4619.2,0.6728]
[1758161707930,36.02700515,4619.3,4619.2,0.6728]
[1758161708938,35.085,4619.3,4619.2,0.6728]
[1758161709437,3.2078,4620.0,4619.9,0.6728]
[1758161709631,4.18235495,4620.0,4619.9,0.6728]
[1758161709833,4.37865495,4620.0,4619.9,0.6728]
[1758161710536,4.14946909,4620.0,4619.9,0.6728]
[1758161710837,5.27404033,4620.0,4619.9,0.6728]
[1758161711136,5.56234033,4620.0,4619.9,0.6728]
[1758161711336,4.12756909,4620.0,4619.9,0.6728]
[1758161711533,1.13776909,4620.0,4619.9,0.6728]
[1758161712339,0.94166909,4620.0,4619.9,0.6728]
[1758161713235,0.72366909,4620.0,4619.9,0.6728]
[1758161713435,0.94166909,4620.0,4619.9,0.6728]
[1758161714336,0.4143,4620.0,4619.9,0.6728]
[1758161714537,0.8987,4620.0,4619.9,0.6728]
[1758161714735,1.42523926,4620.0,4619.9,0.6728]
[1758161714935,1.42523926,4620.0,4619.9,1.9358]
[1758161715533,1.54563926,4620.0,4619.9,1.263]
[1758161716242,1.42523926,4620.0,4619.9,1.5513]
[1758161718742,2.70285241,4620.0,4619.9,1.263]
[1758161720238,6.70285241,4620.0,4619.9,1.263]